bitfinex/quotes_SOLUSD_20240620
["timestamp","ask_amount","ask_price","bid_price","bid_amount"]
[1718880923283,7.06,138.2,138.14,0.17]
[1718880923498,7.06,138.19,138.14,7.23]
[1718880924091,7.06,138.2,138.15,7.06]
[1718880924303,7.06,138.21,138.16,0.17]
[1718880924807,7.06,138.21,138.16,7.23]
[1718880927291,7.06,138.22,138.17,7.06]
[1718880927596,5.82692586,138.29,138.17,7.06]
[1718880927597,58.9896,138.36,138.21,7.06]
[1718880927797,18.0734,138.33,138.19,0.17]
[1718880927998,18.0734,138.33,138.19,20.0]
[1718880928188,15.6078,138.31,138.19,20.0]
[1718880928389,7.06,138.23,138.18,15.2946]
[1718880928588,7.2332,138.25,138.18,15.2946]
[1718880928814,7.2329,138.26,138.18,22.3546]
[1718880929014,7.06,138.23,138.18,22.3546]
[1718880929392,7.06,138.24,138.18,22.3546]
[1718880929586,7.2317,138.28,138.19,7.23]
[1718880929799,7.06,138.25,138.2,7.06]
[1718880929992,7.06,138.26,138.2,7.06]
[1718880930891,7.06,138.26,138.19,0.17]
[1718880931197,7.06,138.26,138.21,7.06]
[1718880931911,15.6078,138.31,138.19,0.51]
[1718880931912,7.06,138.25,138.19,0.17]
[1718880932114,7.06,138.25,138.2,7.06]
[1718880932706,7.06,138.25,138.19,0.17]
[1718880932917,7.06,138.25,138.19,7.23]
[1718880933592,7.06,138.25,138.2,7.06]
[1718880934791,7.4007,138.3,138.2,7.06]
[1718880934990,7.06,138.28,138.22,7.06]
[1718880935205,15.6078,138.31,138.21,0.17]
[1718880935394,7.06,138.28,138.23,7.06]
[1718880935613,20.0,138.3,138.23,7.06]
[1718880936107,7.06,138.28,138.23,7.06]
[1718880936504,7.06,138.28,138.22,7.06]
[1718880937324,7.06,138.28,138.23,7.06]
[1718880937696,7.06,138.29,138.24,22.7999]
[1718880937902,7.06,138.31,138.26,7.06]
[1718880938108,7.2291,138.33,138.24,15.7399]
[1718880938303,14.2896,138.32,138.27,7.06]
[1718880938509,7.06,138.29,138.24,22.7999]
[1718880938920,7.06,138.29,138.24,15.7399]
[1718880939131,7.06,138.29,138.24,22.7999]
[1718880939422,7.06,138.3,138.25,7.06]
[1718880939628,7.06,138.29,138.24,15.7399]
[1718880939930,7.06,138.29,138.24,22.7999]
[1718880940130,7.06,138.3,138.25,7.06]
[1718880940928,7.2291,138.33,138.25,7.06]
[1718880941102,7.06,138.3,138.25,7.06]
[1718880941301,7.06,138.26,138.23,6.202]
[1718880941526,7.06,138.27,138.23,6.202]
[1718880941726,7.06,138.28,138.23,6.202]
[1718880942408,27.06,138.29,138.23,13.262]
[1718880942816,20.0,138.29,138.24,7.06]
[1718880943012,20.0,138.31,138.25,7.06]
[1718880943309,7.06,138.3,138.25,7.06]
[1718880943518,20.0,138.29,138.25,7.06]
[1718880943712,7.2291,138.33,138.25,7.06]
[1718880944029,7.2289,138.34,138.27,7.06]
[1718880944231,7.06,138.32,138.27,7.06]
[1718880944529,7.06,138.31,138.26,7.06]
[1718880945225,269.5213,138.37,138.26,23.6027]
[1718880945430,20.0,138.36,138.27,7.06]
[1718880945608,7.06,138.33,138.27,7.06]
[1718880945813,7.06,138.32,138.26,16.5427]
[1718880946032,7.06,138.32,138.27,7.06]
[1718880946212,276.7487,138.37,138.28,7.06]
[1718880946533,7.06,138.33,138.28,7.06]
[1718880946917,269.5213,138.37,138.28,7.06]
[1718880947120,20.0,138.36,138.28,7.06]
[1718880947432,7.06,138.33,138.28,7.06]
[1718880947832,7.06,138.33,138.26,16.5427]
[1718880947833,7.06,138.32,138.27,7.06]
[1718880948411,20.0,138.36,138.27,7.06]
[1718880948606,20.0,138.36,138.29,6.6396]
[1718880948813,7.06,138.35,138.29,6.6396]
[1718880949020,7.06,138.35,138.29,13.6996]
[1718880949427,20.0,138.36,138.29,13.6996]
[1718880949735,7.06,138.35,138.29,6.6396]
[1718880949936,16.2881,138.4,138.29,6.6396]
[1718880949937,16.2881,138.4,138.3,7.06]
[1718880950115,7.06,138.38,138.33,7.06]
[1718880950317,5.66938168,138.49,138.37,7.06]
[1718880950534,7.06,138.42,138.37,7.06]
[1718880950714,7.06,138.41,138.36,7.06]
[1718880951329,7.06,138.42,138.37,7.06]
[1718880951935,7.223,138.45,138.37,7.06]
[1718880952128,7.06,138.42,138.37,7.06]
[1718880952326,7.2224,138.46,138.38,7.06]
[1718880952530,7.06,138.43,138.38,7.06]
[1718880952735,7.06,138.43,138.35,16.1926]
[1718880952736,266.62563964,138.5,138.39,7.06]
[1718880952917,7.06,138.44,138.39,7.06]
[1718880953327,7.06,138.43,138.38,7.06]
[1718880953540,21.09,138.47,138.36,0.17]
[1718880953838,20.0,138.46,138.36,0.17]
[1718880954011,7.5628,138.45,138.36,0.17]
[1718880954217,18.0519,138.49,138.36,0.17]
[1718880954421,20.0,138.48,138.36,20.34]
[1718880954620,0.34,138.47,138.36,20.34]
[1718880954816,7.2222,138.47,138.36,20.34]
[1718880955022,28.3108,138.49,138.36,20.34]
[1718880955235,7.2216,138.48,138.36,20.34]
[1718880955440,7.2218,138.47,138.36,20.34]
[1718880955823,7.2212,138.48,138.36,20.34]
[1718880956334,27.2217,138.47,138.36,20.34]
[1718880956539,0.34,138.46,138.36,20.34]
[1718880957040,0.17,138.46,138.37,0.17]
[1718880957336,0.17,138.46,138.36,20.17]
[1718880957524,7.223,138.45,138.36,20.17]
[1718880957725,0.34,138.44,138.36,20.17]
[1718880958222,0.17,138.44,138.36,20.17]
[1718880958637,0.17,138.44,138.35,16.1926]
[1718880958935,20.34,138.44,138.35,16.1926]
[1718880959128,0.17,138.43,138.35,16.1926]
[1718880959441,0.34,138.43,138.35,16.1926]
[1718880960028,0.17,138.42,138.35,16.1926]
[1718880960226,0.34,138.42,138.35,16.1926]
[1718880960428,0.17,138.42,138.35,16.1926]
[1718880961042,20.17,138.42,138.35,16.1926]
[1718880961222,0.17,138.41,138.35,16.1926]
[1718880961422,20.17,138.42,138.35,16.1926]
[1718880961423,0.17,138.42,138.35,16.1926]
[1718880961619,269.0447,138.5,138.35,16.1926]
[1718880961845,7.2231,138.45,138.35,16.1926]
[1718880962048,20.0,138.44,138.35,16.1926]
[1718880962430,20.0,138.44,138.36,0.17]
[1718880962629,20.0,138.46,138.36,0.17]
[1718880962831,20.0,138.46,138.36,0.51]
[1718880963435,27.2218,138.47,138.36,20.51]
[1718880964151,7.2223,138.46,138.36,20.51]
[1718880964325,7.2223,138.46,138.36,0.34]
[1718880964525,0.34,138.45,138.35,16.1926]
[1718880964726,0.34,138.44,138.35,16.1926]
[1718880964922,7.2249,138.41,138.35,16.1926]
[1718880965128,7.2265,138.38,138.34,6.2148]
[1718880965428,0.34,138.4,138.34,6.2148]
[1718880965659,0.17,138.39,138.34,6.2148]
[1718880965951,7.2269,138.38,138.34,6.2148]
[1718880966137,20.0,138.41,138.34,6.2148]
[1718880966332,0.34,138.42,138.34,6.2148]
[1718880966548,20.34,138.43,138.34,6.2148]
[1718880966736,7.2256,138.4,138.34,6.2148]
[1718880966943,7.2268,138.38,138.34,6.2148]
[1718880967244,0.51,138.41,138.34,6.2148]
[1718880967552,7.3956,138.4,138.34,6.2148]
[1718880967740,0.34,138.39,138.34,6.2148]
[1718880968130,7.3956,138.4,138.34,6.2148]
[1718880968131,27.395,138.41,138.34,6.2148]
[1718880968333,27.225,138.41,138.34,6.2148]
[1718880968542,7.2256,138.4,138.34,6.2148]
[1718880968851,7.226,138.39,138.34,6.2148]
[1718880969147,7.2266,138.38,138.34,6.2148]
[1718880969350,7.228,138.35,138.32,16.2748]
[1718880969566,7.2275,138.36,138.29,22.2098]
[1718880969729,0.34,138.4,138.29,22.2098]
[1718880969928,7.227,138.37,138.29,22.2098]
[1718880970454,7.2281,138.35,138.29,22.2098]
[1718880970662,21.43,138.39,138.29,22.2098]
[1718880970845,21.09,138.39,138.29,22.2098]
[1718880971157,7.5655,138.4,138.29,22.2098]
[1718880971463,21.09,138.42,138.29,22.2098]
[1718880971638,20.0,138.41,138.29,22.2098]
[1718880971835,20.0,138.41,138.3,0.34]
[1718880972034,20.0,138.41,138.3,20.34]
[1718880972451,27.2251,138.41,138.3,20.34]
[1718880972650,15.7115,138.44,138.32,0.17]
[1718880972862,7.2245,138.42,138.32,0.17]
[1718880973237,7.2245,138.42,138.32,0.34]
[1718880973545,20.0,138.43,138.32,0.17]
[1718880973755,7.2252,138.41,138.32,0.17]
[1718880974457,7.2255,138.4,138.31,22.0885]
[1718880974639,7.225,138.41,138.31,22.0885]
[1718880974840,7.2255,138.4,138.31,22.0885]
[1718880975062,15.7115,138.44,138.32,0.17]
[1718880975362,20.34,138.43,138.32,20.17]
[1718880975530,7.2248,138.42,138.32,20.17]
[1718880975730,7.2245,138.42,138.32,20.17]
[1718880975927,20.34,138.43,138.32,20.17]
[1718880976145,7.2245,138.42,138.32,20.17]
[1718880976348,41.43,138.43,138.32,20.17]
[1718880976742,48.6539,138.43,138.32,20.17]
[1718880976937,41.43,138.43,138.32,20.17]
[1718880977146,41.26,138.43,138.32,20.17]
[1718880977350,0.17,138.42,138.32,20.17]
[1718880978474,20.17,138.43,138.33,15.9473]
[1718880978639,20.17,138.43,138.34,6.165]
[1718880978640,0.17,138.43,138.34,6.165]
[1718880978952,20.0,138.45,138.35,16.1173]
[1718880978953,7.2231,138.45,138.35,16.1173]
[1718880979156,7.2233,138.44,138.35,15.9473]
[1718880979538,15.6045,138.47,138.35,15.9473]
[1718880979863,21.09,138.49,138.37,6.165]
[1718880980039,21.09,138.49,138.39,15.3817]
[1718880980370,7.2219,138.47,138.39,15.3817]
[1718880981033,21.09,138.49,138.39,15.3817]
[1718880981034,39.1419,138.49,138.39,15.3817]
[1718880981240,7.2233,138.44,138.39,15.3817]
[1718880981441,7.223,138.45,138.39,15.3817]
[1718880981640,28.3123,138.46,138.39,15.3817]
[1718880982242,7.2228,138.45,138.39,15.3817]
[1718880983443,28.3123,138.46,138.39,15.3817]
[1718880983642,0.34,138.45,138.39,15.3817]
[1718880984337,20.34,138.45,138.39,15.3817]
[1718880984542,0.17,138.44,138.39,15.3817]
[1718880984764,253.4,138.5,138.39,15.3817]
[1718880984962,20.0,138.49,138.39,15.3817]
[1718880985450,20.0,138.49,138.4,6.1088]
[1718880985855,27.2208,138.49,138.4,6.1088]
[1718880986063,260.6203,138.5,138.41,16.2041]
[1718880986268,16.627,138.55,138.42,0.17]
[1718880986572,21.09,138.53,138.41,16.2041]
[1718880986865,7.2207,138.49,138.41,16.2041]
[1718880987553,7.2222,138.47,138.41,16.2041]
[1718880987741,7.2207,138.49,138.41,16.2041]
[1718880987946,0.17,138.48,138.41,16.2041]
[1718880988169,27.5608,138.49,138.41,16.2041]
[1718880988347,7.2216,138.48,138.41,16.2041]
[1718880988670,27.5608,138.49,138.41,16.2041]
[1718880988870,36.0788,138.59,138.43,22.9096]
[1718880989167,20.0,138.56,138.45,6.7208]
[1718880989473,7.2175,138.56,138.47,6.5508]
[1718880989773,7.2176,138.55,138.47,6.5508]
[1718880989969,39.1319,138.57,138.47,6.5508]
[1718880990146,7.2166,138.57,138.47,6.5508]
[1718880990457,21.09,138.58,138.47,6.5508]
[1718880990658,7.2176,138.55,138.47,6.5508]
[1718880991047,7.2171,138.56,138.47,6.5508]
[1718880991275,7.2172,138.56,138.47,6.5508]
[1718880991653,21.09,138.58,138.47,6.5508]
[1718880991654,0.34,138.57,138.47,6.5508]
[1718880991857,21.09,138.55,138.47,6.5508]
[1718880992061,7.2185,138.54,138.47,6.5508]
[1718880992262,21.09,138.55,138.47,6.5508]
[1718880992560,7.5567,138.57,138.47,6.5508]
[1718880992950,276.0219,138.64,138.47,6.5508]
[1718880993151,16.2967,138.68,138.54,6.2701]
[1718880993373,18.0257,138.7,138.58,15.4922]
[1718880993586,1.3503,138.76,138.64,21.7623]
[1718880993767,16.90874807,138.84,138.65,4.4817]
[1718880994077,37.99874807,138.87,138.66,0.51]
[1718880994247,30.27374494,138.91,138.66,0.17]
[1718880994585,30.27374494,138.91,138.72,7.2086]
[1718880994763,30.27374494,138.91,138.66,28.880028]
[1718880995070,21.09,138.75,138.67,10.62001458]
[1718880995281,18.012,138.8,138.66,10.62001458]
[1718880995446,15.0769,138.84,138.66,10.62001458]
[1718880995652,24.51,138.76,138.66,10.62001458]
[1718880995852,7.2093,138.71,138.65,10.62001458]
[1718880996046,24.51,138.76,138.62,10.62001458]
[1718880996280,7.2111,138.68,138.63,18.74692825]
[1718880996451,20.0,138.67,138.62,10.62001458]
[1718880996651,20.0,138.68,138.63,20.81122036]
[1718880996845,0.51,138.67,138.64,10.39767426]
[1718880997089,0.51,138.67,138.58,6.451]
[1718880997090,0.34,138.67,138.58,6.451]
[1718880997268,7.382,138.66,138.58,6.451]
[1718880997466,0.17,138.66,138.58,6.451]
[1718880997685,20.0,138.66,138.58,6.451]
[1718880997867,7.2099,138.7,138.58,6.451]
[1718880998068,20.0,138.69,138.61,7.2143]
[1718880998370,20.0,138.69,138.62,7.2138]
[1718880998585,24.51,138.73,138.58,14.0028]
[1718880998586,24.51,138.73,138.59,0.17]
[1718880998890,7.2099,138.7,138.59,45.34]
[1718880999062,24.51,138.73,138.59,45.17]
[1718880999267,42.5309,138.73,138.59,45.0]
[1718880999466,42.5309,138.73,138.58,14.0028]
[1718880999695,7.2115,138.67,138.58,13.6668]
[1718880999903,7.2122,138.66,138.58,6.451]
[1718881000089,24.51,138.69,138.53,28.911722]
[1718881000282,20.81557866,138.65,138.53,28.911722]
[1718881000469,20.81557866,138.64,138.56,7.217]
[1718881000835,20.81557866,138.63,138.61,7.2143]
[1718881000974,20.81557866,138.62,138.61,7.2143]
[1718881001171,4.14897866,138.62,138.61,7.2143]
[1718881001377,10.84086013,138.67,138.62,7.2136]
[1718881001792,10.84086013,138.67,138.57,18.0409]
[1718881001793,7.212,138.66,138.58,7.3855]
[1718881001967,38.0223,138.72,138.55,18.0441]
[1718881001968,10.84086013,138.67,138.55,18.0441]
[1718881002168,24.51,138.65,138.52,6.5156]
[1718881002374,10.84086013,138.63,138.53,2.57016945]
[1718881002581,31.01086013,138.64,138.57,7.2165]
[1718881002772,10.84086013,138.63,138.57,7.2165]
[1718881003278,20.0,138.64,138.58,7.216]
[1718881003474,24.51,138.65,138.59,7.2154]
[1718881003702,7.2108,138.69,138.6,7.2145]
[1718881003873,27.2109,138.68,138.6,7.2145]
[1718881004202,7.2114,138.67,138.6,7.2145]
[1718881004388,7.2114,138.67,138.56,18.0422]
[1718881004389,20.0,138.66,138.57,0.17]
[1718881004568,20.0,138.66,138.59,7.2154]
[1718881004777,27.212,138.66,138.59,7.2154]
[1718881005176,20.0,138.66,138.57,45.17]
[1718881005491,31.7202,138.7,138.62,7.2137]
[1718881005795,42.5296,138.74,138.62,7.2137]
[1718881005976,42.5296,138.74,138.58,18.5493]
[1718881005977,7.211,138.68,138.6,7.2145]
[1718881006184,7.211,138.68,138.61,52.2143]
[1718881006901,7.211,138.68,138.61,52.2144]
[1718881007071,7.2104,138.69,138.63,7.2133]
[1718881007392,7.2099,138.7,138.63,7.2133]
[1718881007602,20.0,138.69,138.63,7.2133]
[1718881007774,27.2103,138.69,138.63,7.2133]
[1718881008092,27.2103,138.69,138.62,7.2138]
[1718881008399,7.29153029,138.74,138.69,7.2101]
[1718881008580,60.5314,138.81,138.69,7.2101]
[1718881008581,7.207,138.76,138.69,7.2101]
[1718881008774,7.207,138.76,138.65,6.4948]
[1718881008775,7.2076,138.75,138.66,0.17]
[1718881008976,7.2076,138.75,138.69,7.2102]
[1718881009286,7.2073,138.75,138.69,7.2102]
[1718881009485,18.0145,138.78,138.67,7.2108]
[1718881009685,7.2072,138.75,138.68,52.2107]
[1718881009886,18.0175,138.76,138.65,6.4948]
[1718881010082,18.0175,138.76,138.66,52.2117]
[1718881010283,7.2091,138.72,138.66,52.2117]
[1718881010696,18.0197,138.74,138.65,6.4948]
[1718881011183,0.34,138.73,138.65,13.7071]
[1718881011395,20.34,138.73,138.65,13.7071]
[1718881011791,20.34,138.73,138.65,6.4948]
[1718881011973,7.2104,138.69,138.64,7.2128]
[1718881012173,7.2099,138.7,138.64,7.2128]
[1718881012378,7.2104,138.69,138.63,7.2132]
[1718881012681,7.2099,138.7,138.64,7.2129]
[1718881012881,18.1922,138.72,138.63,7.2132]
[1718881013081,7.2114,138.67,138.61,7.2141]
[1718881013383,7.2117,138.67,138.61,7.2141]
[1718881013588,7.2109,138.68,138.62,7.2136]
[1718881013899,7.2109,138.68,138.59,13.3639]
[1718881014090,24.85,138.71,138.64,7.2125]
[1718881014398,27.2099,138.7,138.65,7.2123]
[1718881014577,27.2099,138.7,138.64,7.2127]
[1718881014976,7.2103,138.69,138.64,7.2127]
[1718881015196,27.2099,138.7,138.65,7.2123]
[1718881015579,27.2099,138.7,138.64,7.2128]
[1718881015775,7.2103,138.69,138.64,7.2128]
[1718881016910,20.0,138.7,138.59,6.1717]
[1718881017200,7.2123,138.66,138.59,6.1717]
[1718881017397,7.2123,138.66,138.6,7.2146]
[1718881017602,7.2124,138.65,138.6,7.2146]
[1718881017796,0.34,138.69,138.62,7.2137]
[1718881017996,7.212,138.66,138.6,7.2148]
[1718881018782,7.2124,138.65,138.59,13.3871]
[1718881019084,18.0273,138.68,138.59,13.3871]
[1718881019085,7.212,138.66,138.6,7.2149]
[1718881019286,7.2124,138.65,138.59,13.387]
[1718881019699,7.2124,138.65,138.59,7.2153]
[1718881020201,7.2119,138.66,138.6,7.2149]
[1718881020410,7.2125,138.65,138.59,7.2154]
[1718881020596,7.2125,138.65,138.6,7.2149]
[1718881020797,7.2125,138.65,138.59,7.2153]
[1718881021121,7.2131,138.64,138.59,7.2153]
[1718881021295,18.0297,138.66,138.53,18.0455]
[1718881021601,7.2136,138.63,138.57,7.2163]
[1718881022187,7.214,138.62,138.56,7.2168]
[1718881023395,7.214,138.62,138.53,18.0455]
[1718881023612,7.214,138.62,138.56,7.2167]
[1718881023880,7.214,138.62,138.57,7.2164]
[1718881024093,0.34,138.65,138.6,7.2149]
[1718881024401,27.5522,138.66,138.6,7.2149]
[1718881024722,5.71478264,138.79,138.52,57.054]
[1718881024723,15.6101,138.71,138.52,57.054]
[1718881024882,31.166,138.74,138.54,65.41]
[1718881024883,6.656,138.74,138.54,65.41]
[1718881025217,20.0,138.73,138.66,7.2117]
[1718881025386,7.2095,138.71,138.65,7.2122]
[1718881025585,7.2095,138.71,138.66,7.2118]
[1718881025999,7.2095,138.71,138.65,7.2119]
[1718881026000,7.2094,138.71,138.65,7.2119]
[1718881026199,7.2083,138.73,138.56,0.17]
[1718881026406,18.0208,138.73,138.56,64.28]
[1718881026907,7.2094,138.71,138.65,7.212]
[1718881027109,18.0233,138.71,138.56,20.0]
[1718881027295,7.2115,138.67,138.61,7.2143]
[1718881027499,7.2127,138.65,138.59,7.215]
[1718881027697,20.68,138.7,138.52,6.2618]
[1718881027698,7.2149,138.61,138.52,6.2618]
[1718881028009,7.2128,138.65,138.52,6.2618]
[1718881028207,27.213,138.64,138.58,7.2159]
[1718881028514,253.4,138.67,138.64,7.2129]
[1718881028690,6.286,138.7,138.62,7.2135]
[1718881028887,7.2108,138.68,138.63,7.2132]
[1718881029211,7.2108,138.68,138.6,18.0362]
[1718881029401,20.34,138.69,138.63,7.2131]
[1718881029600,20.34,138.69,138.62,7.2137]
[1718881030118,20.34,138.69,138.6,18.0362]
[1718881030283,20.0,138.69,138.64,7.2128]
[1718881030488,0.17,138.7,138.53,0.17]
[1718881030682,20.0,138.7,138.53,64.28]
[1718881030917,22.2809,138.71,138.65,7.2119]
[1718881031106,15.0716,138.71,138.64,7.2127]
[1718881031424,7.2106,138.69,138.63,7.2132]
[1718881031591,7.2106,138.69,138.64,7.2127]
[1718881031786,27.2099,138.7,138.64,7.2127]
[1718881032406,7.2118,138.67,138.61,7.2139]
[1718881032589,7.3809,138.68,138.62,7.2135]
[1718881032797,7.2121,138.66,138.61,7.2142]
[1718881032991,7.2126,138.65,138.59,7.2153]
[1718881033316,7.212,138.66,138.53,19.8819]
[1718881033616,0.17,138.68,138.6,7.2149]
[1718881033986,7.2125,138.65,138.6,7.2149]
[1718881034182,7.2125,138.65,138.59,7.2153]
[1718881034406,7.2125,138.65,138.59,7.2154]
[1718881034624,0.17,138.68,138.6,7.2147]
[1718881034804,7.2127,138.65,138.59,7.2153]
[1718881035004,20.17,138.68,138.61,7.2144]
[1718881035005,7.212,138.66,138.61,7.2144]
[1718881035204,20.0,138.65,138.61,7.2144]
[1718881035420,20.0,138.65,138.6,7.2149]
[1718881035599,27.2124,138.65,138.6,7.2149]
[1718881035994,20.0,138.65,138.6,7.2149]
[1718881036215,7.212,138.66,138.61,7.2144]
[1718881036420,20.0,138.65,138.61,7.2144]
[1718881036910,27.2127,138.65,138.6,7.2148]
[1718881037106,0.17,138.68,138.53,63.4819]
[1718881037309,0.17,138.68,138.54,0.68]
[1718881037796,27.381,138.68,138.62,7.2135]
[1718881038002,7.2119,138.66,138.61,7.2143]
[1718881038405,38.1983,138.68,138.54,0.34]
[1718881038608,7.2134,138.63,138.54,0.17]
[1718881038821,7.2134,138.63,138.58,7.2157]
[1718881039037,18.0299,138.66,138.57,7.2163]
[1718881039038,7.2142,138.62,138.57,7.2163]
[1718881039736,7.2145,138.61,138.56,7.2169]
[1718881039901,7.2145,138.61,138.52,6.2618]
[1718881039902,18.0324,138.64,138.52,24.3085]
[1718881040108,7.2151,138.6,138.55,7.2174]
[1718881040510,6.596,138.65,138.52,6.2618]
[1718881040703,5.77848676,138.77,138.52,49.8618]
[1718881040704,24.51,138.67,138.52,49.8618]
[1718881040907,7.2114,138.67,138.62,7.2134]
[1718881041110,27.2109,138.68,138.63,7.2133]
[1718881041319,7.2114,138.67,138.62,7.2137]
[1718881041706,20.0,138.68,138.64,7.2125]
[1718881041914,20.0,138.69,138.6,18.0362]
[1718881042099,20.0,138.7,138.6,18.0362]
[1718881042302,7.2116,138.67,138.57,0.17]
[1718881042511,7.211,138.68,138.62,7.2136]
[1718881042920,20.0,138.7,138.61,7.2142]
[1718881043107,0.17,138.68,138.56,7.1922]
[1718881043309,7.2128,138.65,138.59,7.2153]
[1718881043522,7.2121,138.66,138.6,7.2148]
[1718881044024,20.51,138.68,138.59,7.2153]
[1718881044216,0.17,138.67,138.54,0.17]
[1718881044529,7.212,138.66,138.61,7.2144]
[1718881044700,7.2125,138.65,138.6,7.2148]
[1718881044905,7.213,138.64,138.59,7.2154]
[1718881045105,7.2125,138.65,138.59,7.2152]
[1718881045300,7.211,138.68,138.58,18.0396]
[1718881045501,7.211,138.68,138.53,63.6]
[1718881045502,7.2111,138.68,138.53,63.6]
[1718881045715,7.2111,138.68,138.54,2.56998393]
[1718881045918,7.2111,138.68,138.63,7.213]
[1718881046123,7.2115,138.67,138.62,7.2137]
[1718881046341,7.2119,138.66,138.54,22.56998393]
[1718881046503,7.2115,138.67,138.61,7.2141]
[1718881046704,20.0,138.7,138.55,0.68]
[1718881046705,7.211,138.68,138.55,0.68]
[1718881047001,20.0,138.7,138.55,20.68]
[1718881047002,7.2105,138.69,138.55,20.68]
[1718881047423,20.51,138.7,138.62,7.2138]
[1718881047424,7.2116,138.67,138.62,7.2138]
[1718881047608,7.2116,138.67,138.55,20.34]
[1718881047609,7.212,138.66,138.61,7.2141]
[1718881048211,7.2124,138.65,138.6,7.2146]
[1718881048518,7.2132,138.64,138.55,20.0]
[1718881048710,7.2134,138.63,138.58,7.2157]
[1718881048915,0.34,138.62,138.56,7.2169]
[1718881049114,0.34,138.62,138.57,7.2163]
[1718881050309,6.3417,138.65,138.52,33.624]
[1718881050637,6.3417,138.65,138.6,7.2149]
[1718881050638,13.5541,138.65,138.6,7.2149]
[1718881050811,0.17,138.66,138.52,77.224]
[1718881050999,0.17,138.66,138.61,7.214]
[1718881051000,20.0,138.66,138.61,7.214]
[1718881051430,20.0,138.66,138.62,7.2139]
[1718881051906,20.0,138.66,138.58,18.0399]
[1718881052133,7.2127,138.65,138.6,7.2149]
[1718881052435,7.212,138.66,138.6,7.2149]
[1718881052743,7.2124,138.65,138.6,7.2149]
[1718881052909,7.2124,138.65,138.58,18.0399]
[1718881052910,7.212,138.66,138.61,7.2141]
[1718881053110,7.2117,138.67,138.58,18.0399]
[1718881053302,27.2121,138.66,138.61,7.2143]
[1718881053609,7.2124,138.65,138.6,7.2148]
[1718881053804,20.0,138.66,138.52,33.624]
[1718881054011,0.34,138.65,138.53,20.0]
[1718881054209,20.0,138.66,138.53,20.0]
[1718881054401,7.2129,138.64,138.59,7.2151]
[1718881055328,7.2126,138.65,138.6,7.2149]
[1718881055630,7.2126,138.65,138.59,7.2153]
[1718881056127,7.2126,138.65,138.6,7.2149]
[1718881056330,7.2126,138.65,138.59,7.2153]
[1718881056912,7.2129,138.64,138.59,7.2153]
[1718881057215,7.2123,138.66,138.6,7.2148]
[1718881057427,7.5525,138.65,138.6,7.2148]
[1718881057633,7.2125,138.65,138.6,7.2148]
[1718881059629,7.2125,138.65,138.59,7.2153]
[1718881060024,0.51,138.67,138.59,7.2153]